bitfinex/quotes_SOLUSD_20250920
["timestamp","ask_amount","ask_price","bid_price","bid_amount"]
[1758401857561,2.81033234,240.06,240.03,32.48]
[1758401857737,2.81033234,240.05,240.03,32.48]
[1758401857950,2.81033234,240.04,240.03,31.8]
[1758401858464,2.81033234,240.04,240.03,32.48]
[1758401859151,4.16549239,240.07,240.03,32.48]
[1758401859357,4.16549239,240.07,240.04,0.68]
[1758401859358,2.81042542,240.06,240.04,0.68]
[1758401859542,2.81042542,240.05,240.04,0.68]
[1758401862770,0.1,240.11,240.05,13.59559401]
[1758401863069,2.81026468,240.1,240.06,32.48]
[1758401863274,2.81026468,240.09,240.07,0.68]
[1758401863563,0.1,240.11,240.07,0.68]
[1758401863765,3.47952199,240.1,240.01,4.16649306]
[1758401863963,4.9353452,240.09,240.02,13.59559401]
[1758401864138,3.47952199,240.08,240.04,13.59559401]
[1758401864343,2.80952199,240.07,240.04,14.27559401]
[1758401864544,2.80952199,240.06,240.04,14.27559401]
[1758401864766,0.67,240.08,240.04,14.27559401]
[1758401864968,2.80978408,240.07,240.04,14.27559401]
[1758401865272,2.80978408,240.06,240.04,0.68]
[1758401865474,3.61216261,240.19,240.09,13.59559401]
[1758401865769,0.1,240.19,240.17,13.59559401]
[1758401866066,0.1,240.19,240.18,49.5706751]
[1758401866652,0.1,240.19,240.18,53.7342191]
[1758401867051,1.14205892,240.19,240.18,50.63913801]
[1758401868060,0.1,240.19,240.18,50.63913801]
[1758401874251,0.1,240.19,240.18,49.89913801]
[1758401879361,0.1,240.19,240.18,50.55913801]
[1758401880164,0.1,240.19,240.18,49.89913801]
[1758401882177,0.1,240.19,240.11,10.41171113]
[1758401882487,0.1,240.19,240.14,44.79559401]
[1758401882786,0.1,240.19,240.15,32.12]
[1758401883083,0.1,240.19,240.15,32.8]
[1758401883291,0.1,240.19,240.16,0.68]
[1758401884386,0.1,240.19,240.16,4.84388013]
[1758401884883,0.1,240.19,240.17,2.56353797]
[1758401885080,0.1,240.19,240.18,32.12]
[1758401888196,4.96339727,240.19,240.09,13.59559401]
[1758401888497,0.7,240.18,240.1,0.68]
[1758401888801,0.7,240.18,240.11,32.12]
[1758401888998,0.7,240.17,240.12,0.68]
[1758401889198,0.7,240.17,240.13,32.12]
[1758401891401,0.7,240.17,240.13,32.8]
[1758401892070,0.7,240.17,240.14,32.12]
[1758401893801,4.16361771,240.18,240.14,32.12]
[1758401894003,0.7,240.16,240.14,32.12]
[1758401894494,4.16372134,240.17,240.14,32.12]
[1758401894687,4.86372134,240.17,240.14,32.12]
[1758401894888,4.26348592,240.19,240.15,0.68]
[1758401895090,4.96348592,240.19,240.15,0.68]
[1758401895491,4.26348592,240.19,240.14,32.12]
[1758401895799,0.7,240.18,240.14,32.8]
[1758401897900,0.7,240.18,240.15,32.08]
[1758401899706,4.86357658,240.18,240.14,0.68]
[1758401899893,4.86357658,240.18,240.15,32.08]
[1758401903199,4.86357658,240.18,240.15,32.76]
[1758401903702,1.7422561,240.17,240.07,31.2]
[1758401903885,1.0422561,240.16,240.08,0.68]
[1758401904089,1.7422561,240.15,240.09,32.06]
[1758401904290,1.0422561,240.14,240.1,0.68]
[1758401904504,1.0422561,240.14,240.11,0.68]
[1758401905198,0.7,240.15,240.11,0.68]
[1758401905199,1.0422561,240.13,240.11,0.68]
[1758401905385,1.0422561,240.12,240.11,0.68]
[1758401905780,1.0422561,240.14,240.11,0.68]
[1758401906004,1.0422561,240.13,240.11,0.68]
[1758401906205,1.0422561,240.12,240.11,0.68]
[1758401906593,5.20649774,240.14,240.11,0.68]
[1758401906897,1.0422561,240.13,240.11,0.68]
[1758401907099,1.0422561,240.12,240.11,0.68]
[1758401907293,1.0422561,240.13,240.11,0.68]
[1758401907597,1.0422561,240.12,240.11,0.68]
[1758401907799,1.0422561,240.13,240.11,0.68]
[1758401907991,1.0422561,240.12,240.11,0.68]
[1758401908393,1.0422561,240.13,240.11,0.68]
[1758401908597,1.0422561,240.12,240.11,0.68]
[1758401911300,1.0422561,240.12,240.09,32.06]
[1758401911507,4.16424164,240.14,240.11,0.69]
[1758401911806,1.04245629,240.13,240.11,0.69]
[1758401911999,1.04245629,240.12,240.09,32.06]
[1758401912198,1.04245629,240.11,240.09,32.06]
[1758401912508,6.96704472,240.14,240.09,36.22509859]
[1758401912688,1.04245659,240.13,240.1,0.69]
[1758401912889,1.04245659,240.12,240.11,32.71]
[1758401914911,1.04245659,240.12,240.11,32.02]
[1758401915210,1.04245659,240.12,240.11,32.71]
[1758401918209,1.74245659,240.12,240.11,32.02]
[1758401918916,1.04245659,240.12,240.11,32.02]
[1758401919802,5.20704096,240.12,240.11,32.02]
[1758401922018,5.20704096,240.12,240.11,32.71]
[1758401922916,5.20704096,240.12,240.11,32.02]
[1758401923418,1.04247754,240.12,240.11,32.02]
[1758401925720,1.04247754,240.12,240.11,32.71]
[1758401926400,5.20706191,240.12,240.11,32.02]
[1758401926611,1.04247754,240.12,240.11,32.02]
[1758401928723,3.84494839,240.12,240.11,32.02]
[1758401928938,1.04247754,240.12,240.11,32.02]
[1758401931829,1.04247754,240.12,240.11,31.96]
[1758401934227,5.20706191,240.12,240.06,13.59559401]
[1758401934432,1.04247754,240.11,240.07,32.65]
[1758401934733,1.04247754,240.1,240.08,0.69]
[1758401934932,1.04247754,240.09,240.07,31.96]
[1758401935119,1.04247754,240.08,240.07,31.96]
[1758401935523,1.04247754,240.08,240.07,32.65]
[1758401935717,1.04247754,240.08,240.07,0.69]
[1758401935924,1.04247754,240.08,240.07,32.63]
[1758401937104,1.04247754,240.08,240.07,32.64]
[1758401939432,4.16495272,240.1,240.07,32.64]
[1758401939735,1.04256163,240.09,240.07,32.64]
[1758401939936,1.04256163,240.08,240.07,32.64]
[1758401940117,1.04256163,240.08,240.07,0.18]
[1758401940322,1.04256163,240.08,240.07,32.12]
[1758401943135,1.04256163,240.08,240.07,31.94]
[1758401944559,1.04256163,240.08,240.06,0.66]
[1758401944842,7.67252591,240.1,240.07,31.94]
[1758401945059,7.67252591,240.1,239.98,4.16701391]
[1758401945060,8.71532604,240.09,239.98,4.16701391]
[1758401945342,4.55013488,240.08,240.0,0.66]
[1758401945543,3.85013488,240.07,240.0,0.66]
[1758401945730,3.85013488,240.06,240.0,0.66]
[1758401945933,1.04256169,240.05,240.0,0.66]
[1758401946242,1.04256169,240.04,240.0,4.82659136]
[1758401946455,1.04256169,240.03,240.01,0.66]
[1758401946614,2.80757319,240.05,240.02,31.94]
[1758401946820,1.04271763,240.04,240.03,0.66]
[1758401947340,1.04271763,240.04,240.02,31.94]
[1758401947518,1.04271763,240.03,240.02,32.6]
[1758401947934,1.04271763,240.03,239.98,17.76245542]
[1758401947935,1.74271763,240.03,239.94,102.42159843]
[1758401948241,1.74271763,240.03,239.91,10.52041423]
[1758401948242,4.55187793,240.02,239.97,0.66]
[1758401948439,3.85187793,240.01,239.97,0.66]
[1758401948641,1.04278128,240.0,239.97,0.66]
[1758401948853,4.86601222,240.02,239.95,4.1675241]
[1758401948854,1.04278128,239.99,239.98,0.66]
[1758401949057,1.04278128,239.99,239.98,32.62]
[1758401949559,1.04278128,239.99,239.98,31.96]
[1758401950348,4.86601222,240.01,239.98,31.96]
[1758401950547,1.0429149,240.0,239.98,31.96]
[1758401950755,4.86601222,240.01,239.98,31.96]
[1758401950948,1.0429149,240.0,239.98,31.96]
[1758401951145,4.86601222,240.01,239.98,31.96]
[1758401951351,1.0429149,240.0,239.98,31.96]
[1758401951551,4.86601222,240.01,239.98,31.96]
[1758401951849,1.04291491,240.0,239.98,31.96]
[1758401952057,4.86601222,240.01,239.98,31.96]
[1758401952255,1.04291497,240.0,239.98,31.96]
[1758401953352,4.86601222,240.01,239.98,31.96]
[1758401955161,8.33264938,240.01,239.98,31.96]
[1758401955464,0.7,240.0,239.98,31.96]
[1758401956139,8.33264938,240.01,239.98,31.96]
[1758401956346,0.7,239.99,239.98,31.96]
[1758401956542,0.7,239.99,239.95,12.23443203]
[1758401956752,0.7,239.98,239.96,31.94]
[1758401956960,0.7,239.97,239.95,31.94]
[1758401957165,4.86728584,239.97,239.95,31.94]
[1758401958976,4.16728584,239.97,239.95,31.94]
[1758401959153,0.7,239.96,239.95,31.94]
[1758401959749,16.69730567,239.97,239.95,31.94]
[1758401961242,4.16736122,239.96,239.95,31.94]
[1758401963182,4.16736122,239.96,239.94,31.94]
[1758401963384,4.16736122,239.96,239.94,32.6]
[1758401964961,17.39722859,239.97,239.94,32.6]
[1758401965457,12.53001983,239.97,239.94,32.6]
[1758401965690,12.53001983,239.97,239.95,0.66]
[1758401966898,12.53001983,239.97,239.94,31.94]
[1758401967075,12.53001983,239.97,239.94,32.64]
[1758401967390,0.69,239.98,239.95,0.7]
[1758401967774,13.22001983,239.98,239.95,0.7]
[1758401968172,13.22001983,239.98,239.94,31.94]
[1758401968375,13.22001983,239.98,239.94,32.64]
[1758401971079,0.69,239.97,239.94,32.64]
[1758401971692,0.69,239.97,239.94,32.62]
[1758401975004,12.53001983,239.98,239.94,31.92]
[1758401975191,12.53001983,239.98,239.95,0.7]
[1758401975386,12.53001983,239.98,239.96,0.7]
[1758401975603,12.53001983,239.98,239.97,0.7]
[1758401976109,12.53001983,239.98,239.96,0.7]
[1758401976805,31.2,240.03,239.97,32.6]
[1758401976998,1.0429153,240.02,239.98,36.76692327]
[1758401977197,1.0429153,240.02,239.99,0.7]
[1758401977395,0.69,240.01,239.98,36.06692327]
[1758401977696,0.69,240.01,239.98,31.9]
[1758401978001,0.69,240.01,239.98,32.6]
[1758401978406,0.69,240.01,239.98,0.7]
[1758401978611,0.69,240.01,239.98,32.6]
[1758401980110,43.72845002,240.03,239.98,32.6]
[1758401980111,47.89461541,240.03,239.98,36.06695068]
[1758401980297,1.042915,240.02,239.99,0.7]
[1758401980504,12.5274037,240.04,240.0,31.9]
[1758401980697,1.04290739,240.03,240.01,0.7]
[1758401981317,1.04290739,240.02,240.01,0.7]
[1758401981512,1.04290739,240.04,240.01,0.7]
[1758401981705,43.7268806,240.06,240.01,0.7]
[1758401982018,1.04276562,240.05,240.02,4.16631947]
[1758401982316,1.04276562,240.04,240.03,32.62]
[1758401982499,12.52531157,240.08,240.03,32.62]
[1758401982811,1.0427431,240.07,240.04,0.7]
[1758401983012,1.0427431,240.06,240.04,0.7]
[1758401983320,1.0427431,240.05,240.04,0.7]
[1758401983501,3.84423376,240.08,240.04,0.7]
[1758401983708,1.0427431,240.07,240.04,0.7]
[1758401984015,1.0427431,240.06,240.04,4.86584773]
[1758401984193,12.52478864,240.09,240.05,0.7]
[1758401984394,1.04268481,240.08,240.06,31.9]
[1758401984611,1.04268481,240.07,240.06,31.9]
[1758401984924,1.04268481,240.07,240.06,31.176894]
[1758401985105,1.04268481,240.07,240.06,31.876894]
[1758401985490,1.04268481,240.09,240.06,31.876894]
[1758401985690,1.04268481,240.08,240.07,4.86545174]
[1758401986306,1.04268481,240.08,240.07,0.7]
[1758401988712,1.04268481,240.1,240.07,4.86545174]
[1758401988922,1.04268481,240.09,240.08,0.7]
[1758401990099,1.04268481,240.09,240.08,4.86527824]
[1758401990408,1.04268481,240.09,240.08,0.7]
[1758401990610,1.04268481,240.09,240.08,4.86527824]
[1758401992205,1.04268481,240.12,240.08,4.86527824]
[1758401992407,1.04253954,240.11,240.09,36.76509946]
[1758401992607,2.80223994,240.13,240.1,32.6]
[1758401992934,1.04252438,240.12,240.11,0.7]
[1758401994337,1.73252438,240.12,240.08,0.7]
[1758401994537,1.04252438,240.11,240.09,0.7]
[1758401994715,2.80223994,240.14,240.09,0.7]
[1758401994908,1.04252431,240.13,240.09,0.7]
[1758401995221,1.04252431,240.12,240.09,0.7]
[1758401995410,1.04252431,240.11,240.09,0.7]
[1758401995610,4.8541437,240.15,240.09,4.86508855]
[1758401995815,1.04252437,240.14,240.1,0.7]
[1758401996128,1.04252437,240.13,240.11,32.62]
[1758401996328,1.04252437,240.12,240.11,32.62]
[1758401996506,1.04252437,240.12,240.11,32.64]
[1758401996906,1.04252437,240.14,240.11,32.64]
[1758401997211,1.04252437,240.13,240.11,32.64]
[1758401997411,1.04252437,240.12,240.11,32.64]
[1758401997822,1.04252437,240.14,240.11,32.64]
[1758401998025,1.04252437,240.13,240.11,32.64]
[1758401998419,1.04252437,240.13,240.12,0.72]
[1758401998626,36.03387802,240.17,240.12,0.72]
[1758401998826,1.04241602,240.16,240.13,0.72]
[1758401999128,1.04241602,240.15,240.14,31.9]
[1758402000633,35.36371792,240.17,240.14,32.62]
[1758402000931,1.04235781,240.16,240.14,32.62]
[1758402001318,1.04235781,240.16,240.14,31.9]
[1758402001520,5.20626054,240.16,240.14,31.9]
[1758402001717,4.83390273,240.16,240.14,31.9]
[1758402001916,4.16390273,240.16,240.14,31.9]
[1758402002118,4.16390273,240.16,240.14,32.62]
[1758402002319,0.67,240.18,240.15,0.72]
[1758402002517,1.04235021,240.17,240.16,0.72]
[1758402002743,1.71235021,240.17,240.05,13.23851697]
[1758402002913,31.2,240.15,240.06,32.66]
[1758402003228,1.71235021,240.14,240.07,31.94]
[1758402003434,1.71235021,240.13,240.07,31.94]
[1758402003636,4.16475781,240.11,240.07,31.94]
[1758402003836,4.83475781,240.11,240.08,31.94]
[1758402004011,1.76257943,240.1,240.04,14.26559401]
[1758402004219,1.04257943,240.09,240.05,31.94]
[1758402004538,4.16475781,240.11,240.06,0.67]
[1758402005111,4.16475781,240.11,240.07,0.67]
[1758402005315,4.88475781,240.11,240.08,31.94]
[1758402006320,4.16475781,240.11,240.08,32.61]
[1758402006519,4.16475781,240.11,240.09,0.67]
[1758402006936,4.16475781,240.11,240.08,31.94]
[1758402007137,4.16475781,240.11,240.08,32.61]
[1758402007634,0.72,240.11,240.08,31.94]
[1758402008339,4.88423752,240.14,240.09,0.67]
[1758402008636,1.04254666,240.13,240.1,0.67]
[1758402008834,0.72,240.13,240.08,31.94]
[1758402009136,0.72,240.13,240.09,0.67]
[1758402010132,5.92709809,240.12,240.1,31.94]
[1758402010330,4.88458437,240.12,240.1,31.94]
[1758402011945,1.76251372,240.11,240.08,31.92]
[1758402012115,4.16493127,240.1,240.08,31.92]
[1758402012320,4.88493127,240.1,240.08,31.92]
[1758402012537,0.72,240.09,240.08,31.92]
[1758402013122,4.88510475,240.09,240.08,31.92]
[1758402013531,4.16510475,240.09,240.08,31.92]
[1758402014029,4.16510475,240.09,240.0,10.41651392]
[1758402014030,5.92773199,240.09,240.06,31.92]
[1758402014228,0.72,240.08,240.06,31.92]
[1758402014643,4.16510475,240.09,240.06,31.92]
[1758402014946,4.88510475,240.09,240.06,31.92]
[1758402015527,4.88510475,240.09,240.05,0.67]
[1758402015741,4.88510475,240.09,240.05,32.59]
[1758402016348,5.20805475,240.08,240.05,32.59]
[1758402016551,4.16543478,240.08,240.05,32.59]
[1758402016751,4.16543478,240.08,240.05,31.92]
[1758402016937,4.16543478,240.08,240.06,0.67]
[1758402017648,4.16543478,240.08,240.05,31.92]
[1758402017847,4.16543478,240.08,240.07,0.67]
[1758402018045,5.20804735,240.08,240.07,0.67]
[1758402018636,15.62124295,240.08,240.01,13.59559401]
[1758402018837,15.62124295,240.08,240.01,0.67]
[1758402018838,4.56368838,240.07,240.01,0.67]
[1758402019153,1.04267089,240.06,240.02,31.92]
[1758402019354,1.76267089,240.05,240.02,31.92]
[1758402019542,1.04267089,240.04,240.02,31.92]
[1758402019851,1.04267089,240.03,240.02,31.92]
[1758402020051,4.16614589,240.03,240.02,31.92]
[1758402020248,5.20881678,240.03,240.02,31.92]
[1758402020834,5.92881678,240.03,239.99,0.67]
[1758402021031,1.76267089,240.02,239.99,32.59]
[1758402021231,0.72,240.02,239.99,32.59]
[1758402021852,4.16614589,240.03,239.99,32.59]
[1758402022154,4.16649306,240.01,239.99,32.59]
[1758402023934,0.72,240.03,240.0,0.67]
[1758402024133,1.0428416,240.02,240.0,0.67]
[1758402024340,4.16615665,240.03,240.0,0.67]
[1758402024541,1.04284161,240.02,240.0,0.67]
[1758402024742,4.16615665,240.03,239.99,0.67]
[1758402024950,1.04284167,240.02,239.99,0.67]
[1758402025268,4.1663884,240.02,240.0,0.67]
[1758402026859,4.16614589,240.03,240.0,0.67]
[1758402027058,1.04284161,240.02,240.0,0.67]
[1758402027359,4.16614589,240.03,240.0,0.67]
[1758402027656,1.04284167,240.02,240.0,0.67]
[1758402027858,4.16614589,240.03,239.99,31.92]
[1758402028036,5.20919637,240.02,239.99,32.61]
[1758402028238,4.1663547,240.02,239.99,32.61]
[1758402030255,4.87597233,240.04,239.99,32.61]
[1758402030461,1.04284161,240.03,239.99,32.61]
[1758402030660,1.04284161,240.02,239.99,32.61]
[1758402030839,0.71,240.03,239.99,32.61]
[1758402031038,1.04284173,240.02,239.99,32.61]
[1758402031360,4.87649212,240.02,239.99,31.92]
[1758402032460,4.87649212,240.02,239.98,0.69]
[1758402032668,4.87649212,240.02,239.98,32.59]
[1758402033354,1.75290217,240.01,239.97,31.9]
[1758402033553,0.71,240.0,239.97,31.9]
[1758402033748,0.71,240.0,239.95,13.59559401]
[1758402034057,0.71,240.0,239.97,32.59]
[1758402035459,10.41579868,240.02,239.97,32.59]
[1758402035646,1.0429149,240.01,239.98,0.69]
[1758402035845,1.0429149,240.01,239.98,32.59]
[1758402036049,1.0429149,240.01,239.98,0.69]
[1758402040067,5.20951725,240.01,239.98,0.69]
[1758402040268,4.16660235,240.01,239.98,32.57]
[1758402045770,4.16660235,240.01,239.98,31.88]
[1758402045954,4.16660235,240.01,239.99,0.69]
[1758402046153,4.16660235,240.01,239.98,32.57]
[1758402048652,4.16660235,240.01,239.98,31.88]
[1758402048853,4.16660235,240.01,239.99,0.69]
[1758402049979,4.16631947,240.02,239.99,0.69]
[1758402050180,1.04288952,240.01,239.99,0.69]
[1758402050477,1.75288952,240.01,239.98,31.88]
[1758402050666,0.71,240.01,239.98,32.57]
[1758402051460,4.16631947,240.02,239.98,32.57]
[1758402051666,1.04288954,240.01,239.98,32.57]
[1758402051867,4.87631947,240.02,239.98,32.57]
[1758402052066,5.20948815,240.01,239.98,32.57]
[1758402052280,4.16659855,240.01,239.98,32.57]
[1758402054180,1.0428896,240.0,239.98,32.57]
[1758402054375,4.16659855,240.01,239.98,32.57]
[1758402054564,1.0428896,240.0,239.98,32.57]
[1758402054757,4.16659855,240.01,239.98,32.57]
[1758402054961,1.04288966,240.0,239.98,32.57]
[1758402055168,4.16659855,240.01,239.98,32.57]
[1758402055483,1.04288966,240.0,239.98,32.57]
[1758402055782,4.16659855,240.01,239.98,32.57]
[1758402055970,1.0428896,240.0,239.98,32.57]
[1758402056156,4.16659855,240.01,239.98,32.57]
[1758402056361,1.04288966,240.0,239.98,32.57]
[1758402056565,4.16659855,240.01,239.98,32.57]
[1758402056766,1.0428896,240.0,239.98,32.57]
[1758402056969,4.16659855,240.01,239.98,32.57]
[1758402057168,1.04288966,240.0,239.98,32.57]
[1758402057369,4.16659855,240.01,239.98,32.57]
[1758402057578,1.04288966,240.0,239.98,32.57]
[1758402057778,4.16659855,240.01,239.98,32.57]
[1758402057980,1.04288966,240.0,239.98,32.57]
[1758402058161,1.04288966,239.99,239.98,32.57]
[1758402060877,1.04288972,239.99,239.98,32.57]
[1758402061884,1.04288972,239.99,239.98,31.88]
[1758402063276,5.20973,239.99,239.98,31.88]
[1758402064184,1.04288972,239.99,239.98,31.88]
[1758402064368,3.85598236,239.99,239.98,31.88]
[1758402065993,3.85598236,239.99,239.97,32.58]
[1758402066187,1.04288972,239.98,239.97,32.58]
[1758402070973,1.04288972,239.98,239.97,31.88]
[1758402076601,1.04291517,239.98,239.97,31.88]
[1758402081809,1.04291517,239.98,239.96,4.83733118]
[1758402081991,1.04291517,239.97,239.96,4.83733118]
[1758402082291,1.04291517,239.97,239.96,36.71733118]
[1758402084390,1.04291517,239.97,239.96,36.69141118]
[1758402087823,1.04291517,239.97,239.96,32.55]
[1758402088015,1.04291517,239.97,239.96,31.88]
[1758402088405,1.76291517,239.97,239.96,31.88]
[1758402088598,1.04291517,239.97,239.96,31.88]
[1758402091494,1.04291517,239.97,239.96,32.6]
[1758402091890,1.04291517,239.97,239.96,36.76736122]
[1758402092809,0.72,240.01,239.96,36.76736122]
[1758402093012,4.5775577,240.0,239.97,4.88714308]
[1758402093204,3.8575577,239.99,239.98,31.88]
[1758402093814,3.8575577,239.99,239.97,4.88714308]
[1758402094112,1.04289,239.98,239.97,4.16714308]
[1758402094311,1.04289,239.98,239.97,36.04714308]
[1758402094517,1.04289,239.98,239.97,36.76714308]
[1758402095215,1.04289,239.98,239.97,36.04714308]
[1758402098216,1.04289,239.98,239.97,36.76714308]
[1758402102015,1.04287495,239.98,239.97,36.76714308]
[1758402103799,1.04287495,239.98,239.97,36.04714308]
[1758402104911,1.04287495,239.98,239.97,36.76714308]
[1758402108903,1.04287495,239.98,239.97,50.36273709]
[1758402109217,2.8139633,240.03,239.98,13.59559401]
[1758402109423,3.85674734,240.02,239.99,32.58]
[1758402109625,1.04278404,240.01,240.0,0.72]
[1758402110321,1.04278404,240.01,240.0,4.88666666]
[1758402113819,1.04278404,240.01,240.0,4.16666666]
[1758402116906,3.53120508,240.03,240.0,4.16666666]
[1758402117125,1.04277628,240.02,240.01,31.86]
[1758402117320,1.04277628,240.02,240.01,36.02649306]
[1758402119536,1.04277628,240.02,240.01,31.86]
[1758402120034,1.71277628,240.02,240.01,31.86]
[1758402122614,1.04277628,240.02,240.01,31.86]
[1758402123221,1.71277628,240.02,240.01,31.86]
[1758402125135,1.71277628,240.02,240.0,4.16664335]
[1758402125136,1.71277628,240.02,239.99,0.72]
[1758402125326,3.85331655,240.01,239.99,31.86]
[1758402125521,1.76277628,240.0,239.99,31.86]
[1758402127714,1.76289262,240.0,239.99,31.86]
[1758402128323,1.04289262,240.0,239.99,31.86]
[1758402131527,1.04289262,240.0,239.98,31.86]
[1758402131734,0.72,240.01,239.98,32.53]
[1758402131940,1.04286735,240.0,239.98,32.53]
[1758402132143,0.72,240.01,239.98,32.53]
[1758402132441,1.04286729,240.0,239.98,32.53]
[1758402132642,0.72,240.01,239.98,32.53]
[1758402132844,1.04286735,240.0,239.98,32.53]
[1758402133021,4.88652236,240.01,239.98,31.86]
[1758402133347,1.04286735,240.0,239.98,31.86]
[1758402133528,17.41340296,240.01,239.98,31.86]
[1758402133727,1.04286735,240.0,239.98,31.86]
[1758402133925,17.41340296,240.01,239.98,31.86]
[1758402134128,1.04286735,240.0,239.98,32.53]
[1758402134318,4.88652236,240.01,239.98,32.53]
[1758402134518,1.0428673,240.0,239.98,32.53]
[1758402134719,7.6978225,240.01,239.98,32.53]
[1758402134940,1.04286724,240.0,239.98,31.86]
[1758402135144,4.88652236,240.01,239.98,31.86]
[1758402135360,1.0428673,240.0,239.98,31.86]
[1758402135515,4.88652236,240.01,239.98,31.86]
[1758402135720,1.04286724,240.0,239.98,32.53]
[1758402135939,2.81158643,240.01,239.98,32.53]
[1758402136137,1.0428673,240.0,239.99,0.67]
[1758402136332,1.0428673,240.0,239.99,14.26559401]
[1758402136538,12.52635754,240.04,240.0,13.59559401]
[1758402136816,12.52635754,240.04,240.02,13.59559401]
[1758402137018,12.52635754,240.04,240.01,32.53]
[1758402137019,12.52635754,240.04,240.03,46.12559401]
[1758402137251,0.72,240.1,240.03,46.12559401]
[1758402137252,0.72,240.1,240.04,13.59559401]
[1758402137426,2.81100666,240.09,240.05,31.86]
[1758402137621,2.81100666,240.08,240.06,0.67]
[1758402137835,2.81100666,240.09,240.06,4.83556116]
[1758402138038,2.81060521,240.09,240.07,46.12559401]
[1758402138240,2.80908644,240.14,240.09,13.59559401]
[1758402138446,15.32969327,240.13,240.1,32.53]
[1758402138646,15.32969327,240.13,240.11,0.67]
[1758402138647,12.52060683,240.13,240.11,0.67]
[1758402138844,0.72,240.14,240.1,31.86]
[1758402139024,2.80880687,240.13,240.11,0.67]
[1758402139219,15.3294137,240.15,240.11,0.67]
[1758402139445,2.80880687,240.14,240.12,0.67]
[1758402139651,12.52060684,240.14,240.12,0.67]
[1758402139959,2.80880687,240.13,240.1,32.53]
[1758402140139,0.72,240.14,240.1,32.53]
[1758402140441,12.52060683,240.12,240.1,32.53]
[1758402140739,12.52060683,240.12,240.11,0.67]
[1758402143427,12.52060683,240.12,240.1,31.86]
[1758402143644,12.52060683,240.12,240.1,32.53]
[1758402146047,12.52060683,240.12,240.11,0.69]
[1758402147433,12.52060683,240.12,240.1,32.55]
[1758402147741,12.52060683,240.12,240.07,0.41654517]
[1758402147946,0.72,240.11,240.05,32.53]
[1758402148250,12.52060683,240.12,240.05,32.53]
[1758402148251,0.72,240.1,240.05,32.53]
[1758402148648,0.72,240.09,240.05,32.53]
[1758402148827,0.72,240.09,240.06,0.69]
[1758402149238,12.52269739,240.08,240.06,0.69]
[1758402149731,0.72,240.13,240.07,45.43559401]
[1758402149933,12.5211294,240.11,240.07,45.43559401]
[1758402150148,0.72,240.1,240.07,45.43559401]
[1758402150849,0.72,240.12,240.07,45.43559401]
[1758402151153,0.72,240.12,240.08,0.69]
[1758402151354,12.52112941,240.1,240.08,0.69]
[1758402151737,0.72,240.12,240.08,0.69]
[1758402151943,12.52112941,240.11,240.08,0.69]
[1758402155056,13.24112941,240.11,240.08,0.69]
[1758402155572,12.52112941,240.11,240.09,0.69]
[1758402157742,0.72,240.16,240.09,0.69]
[1758402157944,36.08396199,240.16,240.1,31.84]
[1758402158147,12.52060683,240.13,240.11,0.69]
[1758402158758,42.34868513,240.19,240.1,31.84]
[1758402158759,0.1,240.19,240.12,14.28559401]
[1758402158963,0.82,240.19,240.14,13.59559401]
[1758402159356,2.89985948,240.19,240.15,0.69]
[1758402159540,0.72,240.18,240.13,31.84]
[1758402159740,0.72,240.17,240.13,32.53]
[1758402160954,4.88371915,240.17,240.13,32.53]
[1758402163950,12.51851698,240.18,240.14,14.28559401]